lending/lending_fUSD_20260206
["ID","MTS","AMOUNT","RATE_DAILY","PERIOD"]
[404666985,1770400245665,-666.0,0.00017999,2]
[404666987,1770400245675,-1300612.26465224,0.00018,2]
[404666990,1770400245690,-296.92009,0.00018,2]
[404666992,1770400245701,-537.29033154,0.00018,2]
[404666994,1770400245712,-2028.99060899,0.00018,2]
[404666996,1770400245723,-561.54357013,0.00018,2]
[404666999,1770400245734,-333.95888199,0.00018,2]
[404667000,1770400245745,-316.90671959,0.00018,2]
[404667001,1770400245870,-706.98,0.00018,2]
[404667002,1770400245882,-566094.61391037,0.00018,2]
[404667003,1770400245893,-72770.71974592,0.00018,2]
[404667004,1770400245926,-1293.23725545,0.00018,2]
[404667005,1770400245937,-1000.63721,0.00018,2]
[404667008,1770400275359,7671.0,0.00044195,30]
[404667009,1770400325696,1400.0,0.000126,4]
[404667010,1770400327807,2800.0,0.000127,4]
[404667011,1770400329901,4200.0,0.000128,4]
[404667012,1770400332023,5600.0,0.000129,4]
[404667013,1770400356466,1300.0,0.000126,4]
[404667014,1770400358556,2700.0,0.000127,4]
[404667015,1770400360647,4100.0,0.000128,4]
[404667016,1770400362749,5500.0,0.000129,4]
[404667017,1770400511631,2117.0,0.00044197,120]
[404667019,1770400650028,3650.39999999,0.00044197,120]
[404667021,1770400726817,3415.4639995,0.00011443,30]
[404667022,1770400727403,1484.0,0.00044197,30]
[404667026,1770401037696,63875.0,0.00044169,30]
[404667027,1770401181545,190.66498954,0.00044188,120]
[404667028,1770401223230,188362.333601,0.00044188,32]
[404667029,1770401225807,1400.0,0.000109,3]
[404667030,1770401227898,1642.28212294,0.000116,4]
[404667031,1770401227925,1157.71787706,0.000116,4]
[404667032,1770401229996,4200.0,0.000117,4]
[404667033,1770401232093,5600.0,0.000118,4]
[404667034,1770401234184,7100.0,0.000119,4]
[404667035,1770401257890,147000.0,0.00044188,120]
[404667036,1770401311820,47273.0,0.00044188,30]
[404667037,1770401345154,7867.94244496,0.00044188,30]
[404667041,1770401431717,-1200.0,0.0001066,2]
[404667042,1770401431727,-234.69917683,0.00010661,2]
[404667043,1770401431736,-500.0,0.00010661,2]
[404667044,1770401431746,-500.0,0.00010661,2]
[404667045,1770401431755,-466.15158576,0.00010661,2]
[404667046,1770401431767,-33.84841424,0.00010661,2]
[404667047,1770401431776,-500.0,0.00010661,2]
[404667048,1770401431786,-500.0,0.00010661,2]
[404667049,1770401431795,-198.48117568,0.00010661,2]
[404667050,1770401431815,-301.51882432,0.00010661,2]
[404667051,1770401431824,-17.44312887,0.00010661,2]
[404667052,1770401431836,-482.55687113,0.00010661,2]
[404667053,1770401431845,-500.0,0.00010661,2]
[404667054,1770401431855,-275.45085386,0.00010661,2]
[404667055,1770401431865,-500.0,0.00010661,2]
[404667056,1770401431875,-500.0,0.00010661,2]
[404667057,1770401431885,-500.0,0.00010661,2]
[404667058,1770401431894,-500.0,0.00010661,2]
[404667059,1770401431904,-150.0,0.00010661,2]
[404667060,1770401431914,-237.0,0.00010661,2]
[404667061,1770401431923,-250.0,0.00010661,2]
[404667062,1770401431933,-59.79027501,0.00010662,2]
[404667063,1770401431944,-95974.92574316,0.00010662,2]
[404667064,1770401431955,-787.27893922,0.00010662,2]
[404667065,1770401431967,-3580.88124921,0.00010662,2]
[404667066,1770401431978,-39925.0,0.00010662,2]
[404667085,1770401437778,-1857.2051787,0.00010662,2]
[404667086,1770401437887,-361372.2986147,0.00010662,2]
[404667087,1770401437897,-3405.69453733,0.000109,2]
[404667088,1770401437907,-250.0,0.00010961,2]
[404667089,1770401437916,-195.0,0.00010961,2]
[404667090,1770401437926,-9194.76388286,0.00011061,2]
[404667091,1770401437936,-824.75233779,0.00011061,2]
[404667092,1770401437945,-930.9,0.0001112,2]
[404667093,1770401437955,-1009.07508452,0.00011147,2]
[404667094,1770401437964,-1009.07508452,0.00011147,2]
[404667095,1770401437974,-151.0,0.00011154,2]
[404667096,1770401437983,-151.0,0.00011154,2]
[404667097,1770401437993,-151.0,0.00011154,2]
[404667098,1770401438002,-243.14839075,0.00011156,2]
[404667099,1770401438012,-500.0,0.00011156,2]
[404667100,1770401438022,-336.51449081,0.00011156,2]
[404667101,1770401438032,-500.0,0.00011156,2]
[404667102,1770401438042,-332958.22325306,0.00011157,2]
[404667103,1770401438054,-81999.99999978,0.00011157,2]
[404667104,1770401438068,-348.93660504,0.00011157,2]
[404667105,1770401438080,-781.9940052,0.00011157,2]
[404667106,1770401438090,-14033.4,0.00011157,2]
[404667164,1770401439938,-3322.9113378,0.00011061,2]
[404667165,1770401439949,-3069877.44613692,0.00011157,2]
[404667166,1770401439959,-300.0,0.00011161,2]
[404667167,1770401439969,-4123.751,0.00011181,2]
[404667168,1770401439979,-2500.0,0.00011181,2]
[404667169,1770401439989,-204.2764753,0.00011202,2]
[404667170,1770401440001,-166.66,0.00011203,2]
[404667171,1770401440012,-6039.87,0.00011257,2]
[404667172,1770401440023,-438.71654147,0.00011257,2]
[404667173,1770401440033,-195393.3,0.00011281,2]
[404667174,1770401440044,-9999.99,0.00011281,2]
[404667175,1770401440054,-427.71,0.00011281,2]
[404667176,1770401440068,-9999.99,0.00011281,2]
[404667177,1770401440078,-2006.11,0.00011281,2]
[404667178,1770401440087,-23418.35,0.00011281,2]
[404667179,1770401440097,-299.99,0.00011281,2]
[404667180,1770401440106,-999.99,0.00011281,2]
[404667181,1770401440116,-9999.99,0.00011281,2]
[404667182,1770401440126,-1183.0,0.00011281,2]
[404667183,1770401440137,-1091.1,0.00011281,2]
[404667184,1770401440147,-150.99,0.00011281,2]
[404667185,1770401440158,-6130.07,0.00011281,2]
[404667186,1770401440169,-9999.99,0.00011281,2]
[404667187,1770401440180,-310.94,0.00011281,2]
[404667188,1770401440189,-150.99,0.00011281,2]
[404667189,1770401440200,-166.66,0.00011438,2]
[404667190,1770401440210,-150.0,0.00011453,2]
[404667191,1770401440221,-150.0,0.00011508,2]
[404667192,1770401440231,-150.0,0.00011588,2]
[404667193,1770401440241,-166.31971927,0.00011588,2]
[404667194,1770401440251,-150.0,0.00011588,2]
[404667195,1770401440262,-150.0,0.00011588,2]
[404667196,1770401440272,-150.0,0.00011588,2]
[404667197,1770401440282,-180.53234809,0.00011588,2]
[404667198,1770401440293,-150.0,0.00011588,2]
[404667199,1770401440303,-150.0,0.00011588,2]
[404667200,1770401440313,-500.0,0.00011588,2]
[404667201,1770401440325,-150.0,0.00011588,2]
[404667202,1770401440336,-557.31,0.00011623,2]
[404667203,1770401440345,-150.0,0.00011643,2]
[404667204,1770401440356,-200.0,0.00011643,2]
[404667205,1770401440366,-500.0,0.00011643,2]
[404667206,1770401440376,-150.0,0.00011643,2]
[404667207,1770401440387,-166.66,0.00011674,2]
[404667208,1770401440398,-200.0,0.00011698,2]
[404667209,1770401440409,-500.0,0.00011698,2]
[404667210,1770401440419,-200.0,0.00011698,2]
[404667211,1770401440430,-150.0,0.00011725,2]
[404667212,1770401440441,-1680.0,0.00011726,2]
[404667213,1770401440451,-195.0,0.00011726,2]
[404667214,1770401440461,-193.49422272,0.00011726,2]
[404667215,1770401440470,-195.0,0.00011727,2]
[404667216,1770401440480,-250.0,0.00011727,2]
[404667217,1770401440490,-195.0,0.00011727,2]
[404667218,1770401440499,-195.0,0.00011727,2]
[404667219,1770401440509,-151.0,0.00011745,2]
[404667220,1770401440519,-151.0,0.00011745,2]
[404667221,1770401440533,-151.0,0.00011745,2]
[404667222,1770401440543,-151.0,0.00011745,2]
[404667223,1770401440554,-151.0,0.00011745,2]
[404667224,1770401440564,-151.0,0.00011745,2]
[404667225,1770401440577,-151.0,0.00011745,2]
[404667226,1770401440587,-151.0,0.00011745,2]
[404667227,1770401440599,-151.0,0.00011745,2]
[404667229,1770401440609,-151.0,0.00011745,2]
[404667230,1770401440619,-151.0,0.00011745,2]
[404667231,1770401440630,-151.0,0.00011745,2]
[404667232,1770401440641,-151.0,0.00011745,2]
[404667233,1770401440651,-151.0,0.00011745,2]
[404667234,1770401440662,-151.0,0.00011745,2]
[404667235,1770401440671,-151.0,0.00011745,2]
[404667236,1770401440682,-151.0,0.00011745,2]
[404667237,1770401440692,-151.0,0.00011745,2]
[404667238,1770401440704,-151.0,0.00011745,2]
[404667239,1770401440714,-151.0,0.00011745,2]
[404667240,1770401440723,-151.0,0.00011745,2]
[404667241,1770401440733,-151.0,0.00011745,2]
[404667242,1770401440744,-151.0,0.00011745,2]
[404667243,1770401440754,-151.0,0.00011745,2]
[404667244,1770401440765,-151.0,0.00011745,2]
[404667245,1770401440774,-151.0,0.00011745,2]
[404667246,1770401440784,-151.0,0.00011745,2]
[404667247,1770401440794,-151.0,0.00011745,2]
[404667248,1770401440804,-151.0,0.00011745,2]
[404667249,1770401440814,-151.0,0.00011745,2]
[404667250,1770401440827,-151.0,0.00011745,2]
[404667251,1770401440837,-151.0,0.00011745,2]
[404667252,1770401440847,-151.0,0.00011745,2]
[404667253,1770401440857,-151.0,0.00011745,2]
[404667254,1770401440866,-151.0,0.00011745,2]
[404667255,1770401440877,-151.0,0.00011745,2]
[404667256,1770401440888,-151.0,0.00011745,2]
[404667257,1770401440898,-151.0,0.00011745,2]
[404667258,1770401440907,-151.0,0.00011745,2]
[404667259,1770401440917,-151.0,0.00011745,2]
[404667260,1770401440927,-31898.28612504,0.00011752,2]
[404667261,1770401440938,-501.86275832,0.00011752,2]
[404667262,1770401440947,-516.0,0.00011752,2]
[404667263,1770401440958,-503.1,0.00011852,2]
[404667264,1770401440968,-31898.28612495,0.00011863,2]
[404667265,1770401440979,-3405.6945373,0.00011867,2]
[404667266,1770401440989,-200.0,0.00011904,2]
[404667267,1770401440998,-166.66,0.0001191,2]
[404667268,1770401441008,-31898.28612495,0.00011974,2]
[404667269,1770401441019,-1222.14,0.00012023,2]
[404667270,1770401441029,-31898.28612495,0.00012085,2]
[404667271,1770401441040,-166.66,0.00012146,2]
[404667272,1770401441049,-31898.28612495,0.00012196,2]
[404667273,1770401441060,-300.0,0.00012232,2]
[404667274,1770401441073,-300.0,0.00012232,2]
[404667275,1770401441083,-361.06,0.00012297,2]
[404667276,1770401441092,-31898.28612495,0.00012306,2]
[404667277,1770401441102,-166.66,0.00012382,2]
[404667278,1770401441111,-31898.28612495,0.00012417,2]
[404667279,1770401441121,-150.0,0.00012476,2]
[404667280,1770401441131,-230.49160217,0.00012525,2]
[404667281,1770401441141,-31898.28612495,0.00012528,2]
[404667282,1770401441151,-151.49755887,0.00012531,2]
[404667283,1770401441161,-150.0,0.00012576,2]
[404667284,1770401441170,-150.0,0.00012576,2]
[404667285,1770401441180,-150.0,0.00012631,2]
[404667286,1770401441194,-150.0,0.00012631,2]
[404667287,1770401441205,-31898.28612495,0.00012639,2]
[404667288,1770401441215,-6728.3003,0.00012672,2]
[404667289,1770401441225,-150.0,0.00012686,2]
[404667290,1770401441236,-150.0,0.00012686,2]
[404667291,1770401441246,-150.51948842,0.00012691,2]
[404667292,1770401441255,-150.0,0.00012691,2]
[404667293,1770401441265,-150.0,0.00012691,2]
[404667294,1770401441275,-150.0,0.00012691,2]
[404667295,1770401441285,-150.0,0.00012691,2]
[404667296,1770401441296,-150.0,0.00012691,2]
[404667297,1770401441306,-150.0,0.00012691,2]
[404667298,1770401441319,-6611.09729915,0.000127,2]
[404667299,1770401441329,-315.61,0.00012725,2]
[404667300,1770401441345,-150.0,0.0001274,2]
[404667301,1770401441354,-150.0,0.0001274,2]
[404667302,1770401441364,-150.0,0.00012746,2]
[404667303,1770401441375,-150.0,0.00012746,2]
[404667304,1770401441386,-150.0,0.00012746,2]
[404667305,1770401441397,-150.0,0.00012746,2]
[404667306,1770401441408,-150.0,0.00012746,2]
[404667307,1770401441419,-150.0,0.00012746,2]
[404667308,1770401441430,-2206.60131549,0.0001275,2]
[404667309,1770401441441,-31898.28612495,0.0001275,2]
[404667310,1770401441452,-500.0,0.00012788,2]
[404667311,1770401441462,-840.31,0.00012788,2]
[404667312,1770401441473,-150.0,0.00012795,2]
[404667313,1770401441484,-150.0,0.00012795,2]
[404667314,1770401441495,-150.0,0.00012801,2]
[404667315,1770401441505,-150.0,0.00012801,2]
[404667316,1770401441517,-150.0,0.00012801,2]
[404667317,1770401441531,-150.0,0.00012801,2]
[404667318,1770401441541,-1009.07508452,0.0001284,2]
[404667319,1770401441552,-250.0,0.0001285,2]
[404667320,1770401441563,-250.0,0.0001285,2]
[404667321,1770401441576,-1500000.0,0.0001285,2]
[404667322,1770401441796,-10000.0,0.0001285,2]
[404667323,1770401441807,-150.0,0.00012855,2]
[404667324,1770401441818,-150.0,0.00012855,2]
[404667325,1770401441829,-150.0,0.00012855,2]
[404667326,1770401441839,-150.0,0.00012855,2]
[404667327,1770401441849,-3405.6945373,0.00012872,2]
[404667328,1770401441859,-2351.0,0.00012898,2]
[404667329,1770401441870,-1400.0,0.000129,4]
[404667330,1770401441881,-150.0,0.0001291,2]
[404667331,1770401441891,-150.0,0.0001291,2]
[404667332,1770401441903,-150.0,0.0001291,2]
[404667333,1770401441913,-150.0,0.0001291,2]
[404667334,1770401441924,-250.0,0.00012965,2]
[404667335,1770401441934,-250.0,0.00012965,2]
[404667336,1770401441943,-250.0,0.00012965,2]
[404667337,1770401441958,-250.0,0.00012965,2]
[404667338,1770401441968,-600.0,0.00012973,2]
[404667339,1770401441979,-2206.60131548,0.00013608,2]
[404667340,1770401441990,-500.0,0.00013698,2]
[404667341,1770401442000,-500.0,0.00013698,2]
[404667342,1770401442013,-500.0,0.00013698,2]
[404667343,1770401442024,-500.0,0.00013698,2]
[404667344,1770401442035,-500.0,0.00013698,2]
[404667345,1770401442045,-500.0,0.00013698,2]
[404667346,1770401442056,-500.0,0.00013698,2]
[404667347,1770401442066,-326.5559361,0.00013698,2]
[404667348,1770401442078,-1279.53,0.00013699,2]
[404667349,1770401442088,-200.0,0.00013699,2]
[404667350,1770401442097,-500.0,0.00013699,2]
[404667351,1770401442107,-3405.6945373,0.00013878,2]
[404667352,1770401442116,-33301.6812,0.00013932,2]
[404667353,1770401442127,-1000.0,0.00013932,2]
[404667354,1770401442137,-250.0,0.00014086,2]
[404667355,1770401442147,-3292.0,0.00014188,2]
[404667356,1770401442157,-1000.0,0.00014247,2]
[404667357,1770401442169,-1279.53,0.00014384,2]
[404667358,1770401442179,-1874.07852443,0.00014467,2]
[404667359,1770401442194,-332.52279105,0.00014467,2]
[404667360,1770401442204,-824.75233779,0.00014481,2]
[404667361,1770401442215,-500.0,0.0001463,2]
[404667362,1770401442226,-840.31,0.00014787,7]
[404667363,1770401442236,-561.8082,0.00014795,2]
[404667364,1770401442249,-1046.47760498,0.00014795,2]
[404667365,1770401442260,-501.86275831,0.00014826,2]
[404667366,1770401442270,-1481.93463671,0.00014883,2]
[404667367,1770401442283,-1923.75990059,0.00014883,2]
[404667368,1770401442293,-250.0,0.00015,2]
[404667369,1770401442302,-152.4,0.00015,2]
[404667370,1770401442312,-152.4,0.00015,2]
[404667371,1770401442326,-152.4,0.00015,2]
[404667372,1770401442336,-152.4,0.00015,2]
[404667373,1770401442346,-152.4,0.00015,2]
[404667374,1770401442356,-152.4,0.00015,2]
[404667375,1770401442366,-152.4,0.00015,2]
[404667376,1770401442376,-152.4,0.00015,2]
[404667377,1770401442387,-152.4,0.00015,2]
[404667378,1770401442397,-152.4,0.00015,2]
[404667379,1770401442408,-152.4,0.00015,2]
[404667380,1770401442419,-149.84009941,0.00015,2]
[404667381,1770401442432,-2.55990059,0.00015,2]
[404667382,1770401442442,-152.4,0.00015,2]
[404667383,1770401442452,-152.4,0.00015,2]
[404667384,1770401442463,-52.75334475,0.00015,2]
[404667385,1770401442475,-99.64665525,0.00015,2]
[404667386,1770401442485,-152.4,0.00015,2]
[404667387,1770401442495,-152.4,0.00015,2]
[404667388,1770401442505,-42.71051985,0.00015,2]
[404667389,1770401442589,-109.68948015,0.00015,2]
[404667390,1770401442599,-152.4,0.00015,2]
[404667391,1770401442610,-152.4,0.00015,2]
[404667392,1770401442631,-152.4,0.00015,2]
[404667393,1770401442642,-152.4,0.00015,2]
[404667394,1770401442653,-152.4,0.00015,2]
[404667395,1770401442663,-152.4,0.00015,2]
[404667396,1770401442675,-152.4,0.00015,2]
[404667397,1770401442686,-152.4,0.00015,2]
[404667398,1770401442696,-152.4,0.00015,2]
[404667399,1770401442707,-152.4,0.00015,2]
[404667400,1770401442718,-152.4,0.00015,2]
[404667401,1770401442729,-152.4,0.00015,2]
[404667402,1770401442739,-152.4,0.00015,2]
[404667403,1770401442751,-152.4,0.00015,2]
[404667404,1770401442761,-152.4,0.00015,2]
[404667405,1770401442773,-152.4,0.00015,2]
[404667406,1770401442783,-152.4,0.00015,2]
[404667407,1770401442794,-152.4,0.00015,2]
[404667408,1770401442805,-152.4,0.00015,2]
[404667409,1770401442815,-152.4,0.00015,2]
[404667410,1770401442826,-152.4,0.00015,2]
[404667411,1770401442837,-152.4,0.00015,2]
[404667412,1770401442847,-152.4,0.00015,2]
[404667413,1770401442857,-152.4,0.00015,2]
[404667414,1770401442867,-152.4,0.00015,2]
[404667415,1770401442878,-1279.53,0.00015068,2]
[404667416,1770401442888,-900.0,0.00015068,2]
[404667417,1770401442898,-2206.60131548,0.00015325,2]
[404667418,1770401442909,-500.0,0.00015342,2]
[404667419,1770401442920,-4609.0,0.00015607,2]
[404667420,1770401442930,-1279.53,0.00015753,2]
[404667421,1770401442941,-3405.6945373,0.00015889,2]
[404667422,1770401442951,-166.66,0.00016103,2]
[404667423,1770401442961,-9999.99,0.00016116,2]
[404667424,1770401442972,-2206.60131548,0.00016183,2]
[404667425,1770401442983,-648.54815331,0.00016438,2]
[404667426,1770401442994,-1279.53,0.00016438,2]
[404667427,1770401443008,-801.61808946,0.00016438,2]
[404667428,1770401443019,-603.84610652,0.00016438,2]
[404667429,1770401443033,-296.15389348,0.00016438,2]
[404667430,1770401443043,-166.66,0.00016634,2]
[404667431,1770401443053,-203.18610652,0.0001665,2]
[404667432,1770401443066,-296.81389348,0.0001665,2]
[404667433,1770401443078,-3405.6945373,0.00016894,2]
[404667434,1770401443088,-1790.93,0.00016922,2]
[404667435,1770401443099,-1201.85,0.00016922,2]
[404667436,1770401443109,-300.0,0.00017,2]
[404667437,1770401443120,-500.0,0.00017,2]
[404667438,1770401443130,-2206.60131548,0.00017042,2]
[404667439,1770401443141,-166.66,0.00017166,2]
[404667440,1770401443151,-591.0,0.00017168,2]
[404667441,1770401443162,-530.965304,0.00017178,7]
[404667442,1770401443174,-1400.0,0.000176,6]
[404667443,1770401443184,-166.66,0.00017697,2]
[404667444,1770401443195,-900.43977791,0.000177,6]
[404667445,1770401443208,-499.56022209,0.000177,6]
[404667446,1770401443219,-1400.0,0.000178,6]
[404667447,1770401443229,-500.0,0.00017808,2]
[404667448,1770401443238,-500.0,0.00017808,2]
[404667449,1770401443248,-500.0,0.00017808,2]
[404667450,1770401443259,-500.0,0.00017808,2]
[404667451,1770401443270,-173.17330338,0.00017808,2]
[404667452,1770401443280,-241.46370037,0.00017808,2]
[404667453,1770401443291,-150.0,0.00017876,5]
[404667454,1770401443302,-2520.87739866,0.000179,2]
[404667455,1770401443312,-500.0,0.000179,2]
[404667456,1770401443324,-2206.60131548,0.000179,2]
[404667457,1770401443333,-9446.56347002,0.000179,3]
[404667458,1770401443345,-2447.56425142,0.000179,3]
[404667459,1770401443356,-8000.0,0.000179,3]
[404667468,1770401443873,-382.02724,0.00011181,2]
[404667469,1770401444886,-2117.97276,0.00011181,2]
[404667470,1770401444898,-3322.91133778,0.00014481,2]
[404667471,1770401444908,-2349.151302,0.000179,3]
[404667472,1770401444918,-1721.0,0.000179,6]
[404667473,1770401444928,-217.57051878,0.000179,2]
[404667479,1770401445953,-284.29223953,0.000179,2]
[404667480,1770401445963,-824.75233779,0.000179,2]
[404667481,1770401445973,-2823.39333308,0.000179,2]
[404667482,1770401445984,-582.30120422,0.000179,2]
[404667483,1770401445994,-224.46993276,0.00017982,2]
[404667484,1770401446003,-1220.17419162,0.00017994,2]
[404667485,1770401446015,-15673.00358712,0.00017994,2]
[404667486,1770401446062,-6099.71293827,0.00017994,2]
[404667496,1770401537724,205.0,0.00035616,120]
[404667497,1770401656457,500.0,0.00044188,30]
[404667498,1770401657166,500.0,0.00044188,30]
[404667499,1770401657793,500.0,0.00044188,30]
[404667500,1770401658520,500.0,0.00044188,30]
[404667501,1770401659161,500.0,0.00044188,30]
[404667502,1770401659540,151.0,0.00044188,30]
[404667503,1770401659788,500.0,0.00044188,30]
[404667504,1770401660155,151.0,0.00044188,30]
[404667505,1770401660412,500.0,0.00044188,30]
[404667506,1770401661540,500.0,0.00044188,30]
[404667507,1770401719367,151.0,0.00044188,30]
[404667508,1770401720071,151.0,0.00044188,30]
[404667509,1770401720668,151.0,0.00044188,30]
[404667510,1770401721296,151.0,0.00044188,30]
[404667511,1770401722012,151.0,0.00044188,30]
[404667512,1770401722689,151.0,0.00044188,30]
[404667513,1770401723304,151.0,0.00044188,30]
[404667514,1770401723908,500.0,0.00044188,30]
[404667515,1770401723996,151.0,0.00044188,30]
[404667516,1770401724683,500.0,0.00044188,30]
[404667517,1770401724722,151.0,0.00044188,30]
[404667518,1770401725310,500.0,0.00044188,30]
[404667519,1770401728544,489.8355306,0.00044188,30]
[404667520,1770401774713,6900.0,0.00044188,120]
[404667521,1770401849054,678.254441,0.00044188,120]
[404667522,1770401849363,678.254441,0.00044188,120]
[404667523,1770401849661,678.254441,0.00044188,120]
[404667524,1770401849954,678.254441,0.00044188,120]
[404667525,1770401850282,678.254441,0.00044188,120]
[404667526,1770401850615,678.254441,0.00044188,120]
[404667527,1770401850908,678.254441,0.00044188,120]
[404667528,1770401851510,678.254441,0.00044188,120]
[404667529,1770401851842,678.254441,0.00044188,120]
[404667530,1770401852124,678.254441,0.00044188,120]
[404667531,1770401852423,678.254441,0.00044188,120]
[404667532,1770401852732,678.254441,0.00044188,120]
[404667533,1770401853020,678.254441,0.00044188,120]
[404667534,1770401853324,678.254441,0.00044188,120]
[404667535,1770401853624,678.254441,0.00044188,120]
[404667536,1770401853948,678.254441,0.00044188,120]
[404667537,1770401854234,678.254441,0.00044188,120]
[404667538,1770401854546,678.254441,0.00044188,120]
[404667539,1770401854834,678.254441,0.00044188,120]
[404667540,1770401855137,678.254433,0.00044188,120]
[404667541,1770401863696,151.0,0.00044188,120]
[404667542,1770401864011,151.0,0.00044188,120]
[404667543,1770401864311,151.0,0.00044188,120]
[404667544,1770401864540,195.625038,0.00044188,120]
[404667545,1770401864607,151.0,0.00044188,120]
[404667546,1770401864826,195.625038,0.00044188,120]
[404667547,1770401864980,151.0,0.00044188,120]
[404667548,1770401865109,195.625038,0.00044188,120]
[404667549,1770401865283,151.0,0.00044188,120]
[404667550,1770401865418,195.625038,0.00044188,120]
[404667551,1770401865602,151.0,0.00044188,120]
[404667552,1770401865729,195.625038,0.00044188,120]
[404667553,1770401865889,284.443585,0.00044188,120]
[404667554,1770401866098,195.625038,0.00044188,120]
[404667555,1770401866493,195.625038,0.00044188,120]
[404667556,1770401866770,195.625038,0.00044188,120]
[404667557,1770401867064,195.625038,0.00044188,120]
[404667558,1770401867359,195.625038,0.00044188,120]
[404667559,1770401867636,195.625038,0.00044188,120]
[404667560,1770401867923,195.625038,0.00044188,120]
[404667561,1770401868214,195.625038,0.00044188,120]
[404667562,1770401868508,195.625038,0.00044188,120]
[404667563,1770401868800,195.625038,0.00044188,120]
[404667564,1770401869124,195.625038,0.00044188,120]
[404667565,1770401869423,195.625038,0.00044188,120]
[404667566,1770401869714,195.625038,0.00044188,120]
[404667567,1770401870037,195.625038,0.00044188,120]
[404667568,1770401870331,195.6250332,0.00044188,120]
[404667569,1770401902843,151.0,0.00044188,120]
[404667570,1770401903153,151.0,0.00044188,120]
[404667571,1770401903470,151.0,0.00044188,120]
[404667572,1770401903793,151.0,0.00044188,120]
[404667573,1770401904117,151.0,0.00044188,120]
[404667574,1770401904437,151.0,0.00044188,120]
[404667575,1770401904785,151.0,0.00044188,120]
[404667576,1770401905085,223.563149,0.00044188,120]
[404667577,1770401914651,316.5089,0.00044188,120]
[404667578,1770401914954,316.5089,0.00044188,120]
[404667579,1770401915234,316.5089,0.00044188,120]
[404667580,1770401915528,316.5089,0.00044188,120]
[404667581,1770401915832,316.5089,0.00044188,120]
[404667582,1770401916118,316.5089,0.00044188,120]
[404667583,1770401916408,316.5089,0.00044188,120]
[404667584,1770401917086,316.5089,0.00044188,120]
[404667585,1770401917378,316.5089,0.00044188,120]
[404667586,1770401917680,316.5089,0.00044188,120]
[404667587,1770401918269,316.5089,0.00044188,120]
[404667588,1770401918677,316.5089,0.00044188,120]
[404667589,1770401918862,316.5089,0.00044188,120]
[404667590,1770401919656,316.5089,0.00044188,120]
[404667591,1770401919949,316.5089,0.00044188,120]
[404667592,1770401920240,316.5089,0.00044188,120]
[404667593,1770401920549,316.5089,0.00044188,120]
[404667594,1770401920866,316.5089,0.00044188,120]
[404667595,1770401921286,316.5089,0.00044188,120]
[404667596,1770401921600,316.508896,0.00044188,120]
[404667597,1770401949546,151.0,0.00044188,120]
[404667598,1770401949740,151.0,0.00044188,120]
[404667599,1770401949783,151.0,0.00044188,120]
[404667600,1770401950026,151.0,0.00044188,120]